Cogmind - Beta 17 @@@ ROGUE MODE // 2026.08.15 @ 23:43:39 Player: 4R-ZE3 Result: Destroyed by G-47 Trooper with Particle Gun Performance ------------- Evolutions (3) 1500 Regions Visited (9) 1800 Robots Destroyed (125) 625 Value Destroyed (4368) 4368 Prototype IDs (2) 40 Alien Tech Used (0) 0 Bonus (110) 110 TOTAL SCORE: 8443 Bonus ------- Follower Combat Kills 120 Friendly Fire -10 Cogmind --------- Core Integrity 0/700 Matter 136/300 Energy 325/325 System Corruption 0% Temperature Warm (117) Movement Immobile (Siege) Ox1 Location -7/Lower Caves Parts ------- > --- POWER (1) -------- Antimatter Reactor > --- PROPULSION (4) --- Improved Treads Advanced Treads Heavy Treads > --- UTILITY (6) ------ Huge Storage Unit Improved Signal Interpreter Damper Plating > --- WEAPON (2) ------- Heavy Battle Rifle Heavy Battle Rifle > --- INVENTORY (25) --- Deuterium Engine Nuclear Core Improved Deuterium Engine Improved Deuterium Engine Medium Treads Medium Treads Improved Cooling System Improved Cooling System Improved Cooling System Improved Cooling System Coolant Injector Improved Sensor Array Improved Sensor Array Transmission Jammer Advanced ECM Suite Hardened Light Armor Plating Improved Medium Armor Plating Authchip [Propulsion] Gatling Laser Heavy Rocket Launcher Heavy Rocket Launcher Heavy Rocket Launcher Power Maul Peak State ------------ > --- POWER ------------ Antimatter Reactor > --- PROPULSION ------- Improved Treads Advanced Treads Heavy Treads > --- UTILITY ---------- Huge Storage Unit Improved Signal Interpreter Damper Plating > --- WEAPON ----------- Heavy Battle Rifle Heavy Battle Rifle > --- INVENTORY -------- Deuterium Engine Nuclear Core Improved Deuterium Engine Improved Deuterium Engine Medium Treads Medium Treads Improved Cooling System Improved Cooling System Improved Cooling System Coolant Injector Improved Sensor Array Improved Sensor Array Transmission Jammer Advanced ECM Suite Improved Medium Armor Plating Authchip [Propulsion] Gatling Laser Heavy Rocket Launcher Heavy Rocket Launcher Heavy Rocket Launcher Power Maul [Rating: 68] Favorites ----------- Power Ion Engine Engine Ion Engine Power Core Light Nuclear Core Reactor Antimatter Reactor Propulsion Light Treads Treads Light Treads Leg Carbon-fiber Leg Wheel Compact Wheel Utility Hacking Suite Device Improved Sensor Array Storage Large Storage Unit Processor Improved Signal Interpreter Hackware Hacking Suite Protection Makeshift Kinetic Plating Weapon Light Assault Rifle Energy Gun Gatling Laser Energy Cannon Subdweller Beam Cannon Ballistic Gun Light Assault Rifle Ballistic Cannon Assault Cannon Launcher Heavy Rocket Launcher Impact Weapon Power Maul Build | -11 -10 -10 -10 -8 -7 -7 -7 -7 -7 ------- Run | Yrd Mat Min Sub Mat Fac Was Fac Low Low Slots Evolved 6 | . . . . 4 2 . . . . Power . | . . . . . . . . . . Propulsion 2 | . . . . 2 . . . . . Utility 4 | . . . . 2 2 . . . . Weapon . | . . . . . . . . . . Parts Attached 123 | 8 10 3 7 44 18 2 24 7 . Power 9 | 1 3 . 1 1 2 . 1 . . Engine 6 | 1 2 . 1 1 1 . . . . Core 2 | . 1 . . . 1 . . . . Reactor 1 | . . . . . . . 1 . . Propulsion 39 | 4 1 1 1 18 6 1 7 . . Treads 20 | 2 1 1 1 12 . . 3 . . Leg 9 | . . . . 2 4 1 2 . . Wheel 10 | 2 . . . 4 2 . 2 . . Hover . | . . . . . . . . . . Flight . | . . . . . . . . . . Utility 41 | 1 3 . 1 15 6 1 10 4 . Device 21 | . 1 . . 7 4 . 6 3 . Storage 5 | 1 1 . . 3 . . . . . Processor 4 | . . . . 1 1 1 1 . . Hackware 3 | . . . . 1 1 . 1 . . Protection 8 | . 1 . 1 3 . . 2 1 . Artifact . | . . . . . . . . . . Weapon 34 | 2 3 2 4 10 4 . 6 3 . Energy Gun 7 | 2 2 . . 2 1 . . . . Energy Cannon 7 | . . . 2 2 . . 3 . . Ballistic Gun 15 | . 1 2 2 5 2 . 1 2 . Ballistic Cannon 1 | . . . . . 1 . . . . Launcher 3 | . . . . 1 . . 1 1 . Special Weapon . | . . . . . . . . . . Impact Weapon 1 | . . . . . . . 1 . . Slashing Weapon . | . . . . . . . . . . Piercing Weapon . | . . . . . . . . . . Special Melee Weapon . | . . . . . . . . . . Unidentified Prototypes 2 | . . . . 1 . 1 . . . Parts Lost 37 | . 3 2 2 8 14 3 5 . . Power 5 | . 1 . . 1 2 . 1 . . Propulsion 14 | . 2 . 2 2 6 1 1 . . Utility 7 | . . . . 4 2 1 . . . Weapon 11 | . . 2 . 1 4 1 3 . . Highest Loss Streak 10 | . 1 1 1 2 10 3 1 . . To Critical Strikes 1 | . . . 1 . . . . . . Average Backups 14 | 2 10 14 14 12 12 9 16 15 23 Power 1 | . . . . . . . 3 3 4 Propulsion 2 | 1 3 4 1 2 4 2 1 1 2 Utility 6 | . 2 6 7 5 3 4 9 7 12 Weapon 3 | . 3 3 4 4 4 2 2 3 5 Tool/Special . | . . . . . . . . . . Unused Backups 26 | . 1 3 6 3 . . 1 1 11 Power 5 | . 1 . . . . . . . 4 Propulsion 8 | . . 3 2 . . . 1 . 2 Utility 10 | . . . 3 3 . . . 1 3 Weapon 3 | . . . 1 . . . . . 2 Tool/Special . | . . . . . . . . . . Average Slot Usage (%) 91 | . 96 95 97 97 90 77 85 86 69 Engine 8 | . 12 14 14 8 4 6 4 . . Reactor 1 | . . . . . . . 2 7 7 Treads 19 | . 26 24 25 33 . . 7 23 23 Leg 3 | . . . . . 16 22 4 . . Wheel 2 | . . . . 1 9 . 4 . . Device 9 | . 8 14 . 12 12 10 7 14 . Storage 9 | . 14 14 14 9 7 6 7 5 7 Processor 4 | . . . . 7 7 6 7 7 7 Hackware 6 | . . . . 1 14 13 20 . . Protection 4 | . 4 . 13 4 . . 1 10 7 Energy Gun 3 | . 17 3 . 2 . 6 3 . . Energy Cannon 5 | . . . 11 1 6 3 9 1 . Ballistic Gun 10 | . 10 24 16 14 3 . . 8 15 Peak Build Rating 68 | 6 12 9 20 35 43 66 66 68 68 Average Rating 33 | 4 9 8 15 30 35 58 53 58 68 On Entrance 30 | . 6 9 9 19 32 43 49 66 68 Avg Prop Armor Cover (%) 14 | . . . . 9 13 5 17 4 . Naked Turns . | . . . . . . . . . . Heaviest Build 151 | 13 30 30 48 97 102 102 151 149 . Greatest Support 115 | 40 40 40 40 83 62 112 115 115 . Greatest Overweight (x) 9 | . 1 1 2 3 9 1 7 1 . Average Overweight (x) 1 | . . . . . 2 . 2 . . Largest Inventory Capacity 25 | 8 15 15 15 25 25 25 25 25 25 Average Capacity 18 | 7 12 15 15 15 25 25 25 21 25 Most Carried 25 | 3 15 15 15 16 16 15 25 25 23 Average Carried 15 | 2 10 14 14 14 14 13 20 18 23 Final Capacity 25 | 8 15 15 15 25 25 25 25 25 25 Final Carried 23 | 3 15 15 15 16 11 14 20 23 23 Class Distribution -------------------- 34% | Mutant 31% | Hacker-Mutant 29% | Scavenger-Mutant 4% | Derelict-Mutant Dominant Class ---------------- Scavenger-Mutant | -10/Materials Mutant | -10/Mines Mutant | -10/Subcaves Scavenger-Mutant | -8/Materials Hacker-Mutant | -7/Factory Scavenger-Mutant | -7/Waste Hacker-Mutant | -7/Factory Mutant | -7/Lower Caves Mutant | -7/Lower Caves Resources | -11 -10 -10 -10 -8 -7 -7 -7 -7 -7 ----------- Run | Yrd Mat Min Sub Mat Fac Was Fac Low Low Matter Collected 3514 | 194 272 67 116 1506 434 105 508 312 . Remotely . | . . . . . . . . . . Salvage Created 5041 | . 448 84 262 2002 579 246 1207 174 39 Parts 242 | . 27 6 18 104 24 4 45 10 4 Haulers Intercepted 4 | . 1 . . 3 . . . . . Recyclers Shooed 3 | . . . . 1 2 . . . . Parts Field Recycled . | . . . . . . . . . . Retrieved Matter . | . . . . . . . . . . Parts Self-Destructed 25 | . . . 11 . . . . 13 1 Prevented . | . . . . . . . . . . Parts Restored 1 | . . . . . . . 1 . . Broken 1 | . . . . . . . 1 . . Kills | -11 -10 -10 -10 -8 -7 -7 -7 -7 -7 ------- Run | Yrd Mat Min Sub Mat Fac Was Fac Low Low Combat Hostiles Destroyed 107 | . 14 4 7 37 11 1 25 7 1 Guns 59 | . 14 4 3 30 4 . 1 2 1 Cannons 25 | . . . 4 2 2 1 16 . . AOE 20 | . . . . 4 4 . 7 5 . Classes Destroyed 16 | . 3 . 1 6 4 1 1 . . Worker 3 | . . . . 1 . . 2 . . Builder 2 | . . . . 2 . . . . . Tunneler 2 | . . . . . 1 . 1 . . Hauler 4 | . 1 . . 3 . . . . . Recycler 5 | . . . . 2 2 . 1 . . Mechanic 1 | . . . . . . . 1 . . Operator 1 | . . . . . 1 . . . . Swarmer 27 | . 8 3 . 5 2 . 5 4 . Grunt 40 | . 6 1 . 16 4 . 12 . 1 Brawler 2 | . . . . 1 . . 1 . . Duelist 3 | . . . . . 1 . 2 . . Sentry 20 | . . . . 14 2 . 3 1 . Hunter 3 | . . . . 1 . . 1 1 . Programmer 4 | . . . . . 2 . 1 1 . Compactor 1 | . . . . . . 1 . . . Subdweller 7 | . . . 7 . . . . . . Best Kill Streak 7 | . 3 3 3 7 7 1 5 4 1 Combat Bots Only 7 | . 3 3 3 5 7 1 5 4 1 Max Kills in Single Turn 3 | . 2 1 1 2 2 1 3 3 1 Gunslinging 1 | . 1 . . . . . . . . Exploded 3 | . . . . 2 2 . 3 3 . Melee . | . . . . . . . . . . Uniques/NPCs Destroyed . | . . . . . . . . . . Combat | -11 -10 -10 -10 -8 -7 -7 -7 -7 -7 -------- Run | Yrd Mat Min Sub Mat Fac Was Fac Low Low Hostile Shots Fired 921 | . 100 26 26 274 219 6 201 63 6 Missed 252 | . 32 3 6 69 65 3 58 15 1 Hits 669 | . 68 23 20 205 154 3 143 48 5 Melee 5 | . . . . . . 3 2 . . Projectile 664 | . 68 23 20 205 154 . 141 48 5 AOE 1 | . . . 1 . . . . . . Critical Strikes 14 | . . . 2 7 1 2 2 . . Part Disruptions 1 | . . . . . . . . 1 . Damage Taken 8163 | . 653 210 450 2554 1583 144 1725 764 80 Core 1043 | . 90 18 83 136 300 . 363 35 18 Absorbed by Shields 412 | . . . . 412 . . . . . Reduced by Siege Mode 41 | . . . . . . . 27 14 . Ignored by Resistances 14 | . . . 12 2 . . . . . Core Remaining (%) 66 | 100 . . 23 75 . . . . . Volleys Fired 453 | . 68 20 31 169 56 13 73 21 2 Largest 2 | . 2 2 2 2 2 2 2 2 2 Hottest 155 | . 100 85 110 145 135 155 149 78 66 Shots Fired 792 | . 112 40 48 327 90 25 106 40 4 Gun 576 | . 112 40 22 298 52 12 5 31 4 Cannon 193 | . . . 26 25 35 13 94 . . Launcher 23 | . . . . 4 3 . 7 9 . Special . | . . . . . . . . . . Kinetic 462 | . 56 30 22 251 68 . . 31 4 Thermal 285 | . 56 10 26 72 19 25 77 . . Explosive 23 | . . . . 4 3 . 7 9 . Electromagnetic 22 | . . . . . . . 22 . . Robot Hit Streak 31 | . 6 13 9 26 22 10 31 7 7 Robot Miss Streak 6 | . 6 3 1 4 2 4 3 2 . Penetration Max . | . . . . . . . . . . Secondary Targets 4 | . 3 . . 1 . . . . . Max Gunslinging Chain 1 | . 1 . . 1 . . . . . Shots Hit Robots 565 | . 68 27 28 253 61 22 80 22 4 Core Hits 229 | . 26 11 9 81 33 8 46 13 2 Critical Kills 2 | . . . . 1 . . 1 . . Critical Parts Destroyed 4 | . 1 1 . 1 . . . 1 . Critical Strikes 19 | . 6 3 . 7 . . 1 1 1 Burn 12 | . 5 2 . 5 . . . . . Meltdown 1 | . . . . . . . 1 . . Destroy 6 | . 1 1 . 2 . . . 1 1 Melee Attacks 3 | . . . . . . . 3 . . Impact 3 | . . . . . . . 3 . . Slashing . | . . . . . . . . . . Piercing . | . . . . . . . . . . Sneak Attacks . | . . . . . . . . . . Combat Hostiles . | . . . . . . . . . . Follow-up Attacks . | . . . . . . . . . . Damage Inflicted 11792 | . 718 243 639 4444 1422 587 2848 804 87 Guns 6390 | . 718 243 336 3649 622 262 89 384 87 Cannons 3427 | . . . 303 402 534 325 1863 . . Explosions 1964 | . . . . 382 266 . 896 420 . Melee . | . . . . . . . . . . Ramming 11 | . . . . 11 . . . . . Kinetic 5056 | . 275 169 336 3084 721 . . 384 87 Thermal 4356 | . 443 74 303 967 435 587 1547 . . Explosive 1807 | . . . . 382 266 . 739 420 . Electromagnetic 562 | . . . . . . . 562 . . Impact . | . . . . . . . . . . Slashing . | . . . . . . . . . . Piercing . | . . . . . . . . . . Highest Corruption 1 | . . . . 1 1 1 . . . Average Corruption 1 | . . . . 1 1 1 . . . Corruption Purged 1 | . . . . . . 1 . . . Corruption Blocked . | . . . . . . . . . . Effects 21 | . . . . 18 3 . . . . Message Errors 5 | . . . . 4 1 . . . . Matter Fused 5 | . . . . 5 . . . . . Heat Flow Errors 3 | . . . . 2 1 . . . . Energy Discharges 4 | . . . . 3 1 . . . . Data Loss (minor) 2 | . . . . 2 . . . . . Data Loss (major) 1 | . . . . 1 . . . . . Misfires 1 | . . . . 1 . . . . . Overload Shots . | . . . . . . . . . . Overflow Damage 156 | . . . . 30 1 . 109 16 . Projectiles 52 | . . . . . 1 . 51 . . Explosions 104 | . . . . 30 . . 58 16 . Melee . | . . . . . . . . . . Knockbacks 2 | . . . . . 2 . . . . Impact . | . . . . . . . . . . Kinetic 2 | . . . . . 2 . . . . Secondary . | . . . . . . . . . . Self-Inflicted Damage 179 | . . . . 31 2 . 57 89 . Shots 5 | . . . . 1 1 . 1 2 . Rammed 3 | . 1 . . 2 . . . . . Targets Rammed 3 | . 1 . . 2 . . . . . Kicked . | . . . . . . . . . . Crushed . | . . . . . . . . . . Highest Temperature 431 | . 406 48 39 431 139 120 327 144 108 Average Temperature 101 | . 122 22 13 145 57 48 85 58 63 Received Heat Transfer 2421 | . 231 45 111 990 336 . 663 . 45 Effects 8 | . 1 . . 7 . . . . . Energy Bleed 1 | . . . . 1 . . . . . Interference 3 | . 1 . . 2 . . . . . Matter Decay 2 | . . . . 2 . . . . . Short Circuit 2 | . . . . 2 . . . . . Siege Activations 9 | . . . . . . . 5 4 . Total Turns 284 | . . . . . . . 145 139 . Longest Duration 90 | . . . . . . . 90 88 . Martial Activations . | . . . . . . . . . . Shielding Activations . | . . . . . . . . . . Robots Disrupted . | . . . . . . . . . . Combat Hostiles . | . . . . . . . . . . Robots Corrupted 1 | . . . . . . . 1 . . Combat Hostiles . | . . . . . . . . . . Parts Fried 5 | . . . . . . . 5 . . Impact Corruptions . | . . . . . . . . . . Robots Melted 3 | . . . . 1 1 . 1 . . Combat Hostiles 3 | . . . . 1 1 . 1 . . Parts Melted 17 | . 1 . . 6 3 . 7 . . Heat Transferred 8854 | . 1543 333 407 2050 707 1081 2733 . . Parts Sabotaged . | . . . . . . . . . . Parts Stolen . | . . . . . . . . . . Parts Stripped . | . . . . . . . . . . Power Chain Reactions . | . . . . . . . . . . Alert | -11 -10 -10 -10 -8 -7 -7 -7 -7 -7 ------- Run | Yrd Mat Min Sub Mat Fac Was Fac Low Low Maximum Alert Level 1 | . . . . 1 . . 1 . . Low Security (%) 86 | 100 100 100 . 81 100 100 72 . . Level 1 13 | . . . . 18 . . 27 . . Level 2 . | . . . . . . . . . . Level 3 . | . . . . . . . . . . Level 4 . | . . . . . . . . . . Level 5 . | . . . . . . . . . . High Security . | . . . . . . . . . . Max Security . | . . . . . . . . . . Peak Influence 385 | . 167 70 . 306 135 25 385 . . Initial 135 | . . 19 . . 135 25 . . . Average 79 | . 80 7 . 119 41 3 93 . . Influence Increases 3134 | . 472 135 . 1137 347 . 873 150 20 Destroy 0b10 Robot/C 1980 | . 280 80 . 740 220 . 500 140 20 Destroy 0b10 Robot/NC 90 | . 5 . . 40 20 . 25 . . Destroy Leader 458 | . 62 10 . 206 70 . 100 10 . Successful Hack 97 | . 4 . . 14 8 . 71 . . Select Force Hacks 30 | . 30 . . . . . . . . Disable Machine 105 | . . . . 15 15 . 75 . . Destroy Structure 119 | . 1 . . 47 14 . 57 . . Lose Combat Pursuer 255 | . 90 45 . 75 . . 45 . . Influence Decreases 3114 | . 420 187 . 840 570 74 664 359 . Entered New Map 322 | . . 33 . . 162 49 . 78 . Time Decay 1953 | . 390 144 . 501 298 25 314 281 . Lost Part 280 | . 30 10 . 80 110 . 50 . . Purge Threat 559 | . . . . 259 . . 300 . . Squads Dispatched 27 | . 3 1 . 12 5 . 6 . . Investigation 5 | . 1 1 . 2 . . 1 . . Extermination 6 | . . . . . 2 . 4 . . Reinforcement 7 | . 2 . . 4 . . 1 . . Assault . | . . . . . . . . . . Garrison 9 | . . . . 6 3 . . . . Intercept . | . . . . . . . . . . Searches Triggered . | . . . . . . . . . . Construction Impeded . | . . . . . . . . . . Haulers Reinforced . | . . . . . . . . . . Active Scanning Responses . | . . . . . . . . . . Cargo Convoy Interrupts . | . . . . . . . . . . Stealth | -11 -10 -10 -10 -8 -7 -7 -7 -7 -7 --------- Run | Yrd Mat Min Sub Mat Fac Was Fac Low Low Distress Signals 9 | . . . . 6 . . 3 . . Communications Jammed . | . . . . . . . . . . Distress Signals . | . . . . . . . . . . Times Spotted 167 | . 28 6 11 56 14 6 36 7 3 Peak Tracking Total 7 | . 6 3 3 6 6 5 7 4 3 Tactical Retreats 13 | . 3 3 . 4 . . 3 . . ECM-based Alert Blocks 3 | . . . . . . . 3 . . Traps | -11 -10 -10 -10 -8 -7 -7 -7 -7 -7 ------- Run | Yrd Mat Min Sub Mat Fac Was Fac Low Low Traps Triggered 9 | . 2 . . 2 2 . 3 . . Indirectly . | . . . . . . . . . . Trap Hack Attempts . | . . . . . . . . . . Triggered . | . . . . . . . . . . Disarmed . | . . . . . . . . . . Reprogrammed . | . . . . . . . . . . Reused . | . . . . . . . . . . Traps Extracted . | . . . . . . . . . . Installed . | . . . . . . . . . . Triggered . | . . . . . . . . . . Machines | -11 -10 -10 -10 -8 -7 -7 -7 -7 -7 ---------- Run | Yrd Mat Min Sub Mat Fac Was Fac Low Low Machines Disabled 8 | . . . . 1 1 . 5 1 . Max in Single Turn 2 | . . . . 1 1 . 2 1 . Garrison Access 3 | . . . . . 1 . 2 . . Machines Repaired . | . . . . . . . . . . Machines Dismantled . | . . . . . . . . . . Machines Sabotaged . | . . . . . . . . . . Overloaded Fab Kills . | . . . . . . . . . . Hacking | -11 -10 -10 -10 -8 -7 -7 -7 -7 -7 --------- Run | Yrd Mat Min Sub Mat Fac Was Fac Low Low Machines Accessed 31 | . 5 1 1 6 4 . 14 . . Terminals 18 | . 4 . . 5 3 . 6 . . Fabricators 1 | . . . . . . . 1 . . Repair Stations . | . . . . . . . . . . Recycling Units 3 | . 1 . . . . . 2 . . Scanalyzers 3 | . . . . 1 . . 2 . . Garrison Access 4 | . . . . . 1 . 3 . . Total Hacks 93 | . 14 1 4 20 7 . 47 . . Successful 46 | . 5 1 4 10 5 . 21 . . Failed 46 | . 9 . . 10 2 . 25 . . Catastrophic 3 | . . . . . 2 . 1 . . Database Lockouts 1 | . . . . . . . 1 . . Manual 60 | . 15 . . 15 5 . 25 . . Terminals 58 | . 12 . . 17 6 . 23 . . Fabricators 4 | . . . . . . . 4 . . Repair Stations . | . . . . . . . . . . Recycling Units 6 | . 2 . . . . . 4 . . Scanalyzers 12 | . . . . 3 . . 9 . . Garrison Access 8 | . . . . . 1 . 7 . . Terminal Hacks 16 | . 1 1 4 4 1 . 5 . . Record 4 | . . . 4 . . . . . . Part Schematic 1 | . . . . . 1 . . . . Robot Analysis 2 | . 1 . . . . . 1 . . Open Door 1 | . . 1 . . . . . . . Branch Access Points 2 | . . . . 1 . . 1 . . Terminal Index 1 | . . . . 1 . . . . . Unreport Threat 4 | . . . . 2 . . 2 . . Recall Extermination 1 | . . . . . . . 1 . . Fabricator Hacks 1 | . . . . . . . 1 . . Load Schematic 1 | . . . . . . . 1 . . Repair Station Hacks . | . . . . . . . . . . Recycling Unit Hacks 1 | . . . . . . . 1 . . Retrieve Components 1 | . . . . . . . 1 . . Scanalyzer 11 | . . . . 3 . . 8 . . Insert Component 1 | . . . . . . . 1 . . Analyze 5 | . . . . . . . 5 . . Retrieve Study 5 | . . . . 3 . . 2 . . Garrison Access Hacks 3 | . . . . . 1 . 2 . . Seal Access 3 | . . . . . 1 . 2 . . Unauthorized Hacks 14 | . 4 . . 3 3 . 4 . . Terminals 12 | . 3 . . 3 3 . 3 . . Botnet 12 | . 3 . . 3 3 . 3 . . Fabricators 1 | . . . . . . . 1 . . Recompile 1 | . . . . . . . 1 . . Repair Stations . | . . . . . . . . . . Recycling Units 1 | . 1 . . . . . . . . Tunnel 1 | . 1 . . . . . . . . Scanalyzers . | . . . . . . . . . . Garrison Access . | . . . . . . . . . . Data Cores Recovered . | . . . . . . . . . . Used . | . . . . . . . . . . Hacking Detections 22 | . 4 . . 4 3 . 11 . . Full Trace Events 1 | . . . . 1 . . . . . Feedback Events . | . . . . . . . . . . Feedback Blocked . | . . . . . . . . . . Robot Schematics Acquired . | . . . . . . . . . . Robots Built . | . . . . . . . . . . Authchips . | . . . . . . . . . . Time . | . . . . . . . . . . Total Robot Build Rating . | . . . . . . . . . . Part Schematics Acquired 2 | . . . . . 1 . 1 . . Parts Built . | . . . . . . . . . . Authchips . | . . . . . . . . . . Time . | . . . . . . . . . . Total Part Build Rating . | . . . . . . . . . . Part Studies Acquired 5 | . . . . 3 . . 2 . . Parts Repaired . | . . . . . . . . . . Time . | . . . . . . . . . . Parts Recycled . | . . . . . . . . . . Recycled Matter . | . . . . . . . . . . Retrieved Matter . | . . . . . . . . . . Retrieved Components 1 | . . . . . . . 1 . . Parts Scanalyzed 1 | . . . . . . . 1 . . Part Schematics Acquired 1 | . . . . . . . 1 . . Parts Damaged 1 | . . . . . . . 1 . . Bothacking | -11 -10 -10 -10 -8 -7 -7 -7 -7 -7 ------------ Run | Yrd Mat Min Sub Mat Fac Was Fac Low Low Used RIF Installer . | . . . . . . . . . . Robots Hacked . | . . . . . . . . . . Non-combat . | . . . . . . . . . . Combat . | . . . . . . . . . . Robot Hacks Applied . | . . . . . . . . . . Relay Couplers Released . | . . . . . . . . . . Fabnet Peak Effective % . | . . . . . . . . . . Robots Rewired . | . . . . . . . . . . Allies Hacked . | . . . . . . . . . . Hacks Repelled . | . . . . . . . . . . Allies | -11 -10 -10 -10 -8 -7 -7 -7 -7 -7 -------- Run | Yrd Mat Min Sub Mat Fac Was Fac Low Low Total Allies 3 | . . 2 . . . 1 . . . Largest Group 2 | . . 2 2 . . 1 . . . Highest-Rated Group 47 | . . 47 47 . . 31 . . . Highest-Rated Ally 31 | . . 31 31 . . 31 . . . Total Orders . | . . . . . . . . . . Ally Attacks 33 | . . . 22 . . 11 . . . Total Damage 648 | . . . 459 . . 189 . . . Kills 4 | . . . 4 . . . . . . Allies Corrupted . | . . . . . . . . . . Allies Melted . | . . . . . . . . . . Intel | -11 -10 -10 -10 -8 -7 -7 -7 -7 -7 ------- Run | Yrd Mat Min Sub Mat Fac Was Fac Low Low Active Infowar (turns) 4849 | . . . . . 730 222 2635 1262 . Optics 1726 | . . . . . . 222 1504 . . Sensors 3105 | . . . . . 730 . 1113 1262 . Jamming 265 | . . . . . . . . 265 . ECM 18 | . . . . . . . 18 . . Robot Analysis Total 2 | . 1 . . . . . 1 . . Derelict Logs Recovered 4 | . . 2 1 . . . . 1 . Drone Launches . | . . . . . . . . . . Drone Recoveries . | . . . . . . . . . . Exploration | -11 -10 -10 -10 -8 -7 -7 -7 -7 -7 ------------- Run | Yrd Mat Min Sub Mat Fac Was Fac Low Low Turns Passed 12046 | 63 1087 999 1978 2390 1110 291 2837 1285 6 Spaces Moved 5258 | 37 483 530 812 1047 527 162 1183 477 . Core 1 | 1 . . . . . . . . . Treads 3581 | 21 483 530 812 962 . . 296 477 . Legs 684 | . . . . . 132 162 390 . . Wheels 992 | 15 . . . 85 395 . 497 . . Hover . | . . . . . . . . . . Flight . | . . . . . . . . . . Fastest Speed 50 | 50 160 160 160 100 140 117 135 155 . Average Speed 187 | 132 167 173 230 163 168 145 202 209 . Slowest Speed 330 | 160 240 240 320 320 330 192 270 221 . Overloaded Moves . | . . . . . . . . . . Propulsion Burnouts . | . . . . . . . . . . Robots Hopped . | . . . . . . . . . . Potential Cave-ins . | . . . . . . . . . . Cave-ins Triggered . | . . . . . . . . . . Exploration Rate (%) 46 | 3 74 97 48 69 12 78 28 53 1 Regions Visited 9 Branch Regions 4 Pre-discovered Areas 4 | . 1 1 1 . . . . 1 . Known Exits Taken 2 | . . . . . . . 1 1 . Unknown Exits Taken 5 | 1 1 1 1 1 . . . . . Scrap Searched 5 | . . 1 1 . . . . 3 . Spaces Dug 3 | . . . . 1 . . 2 . . Terrain Destroyed 173 | . . . 1 42 20 . 66 44 . Melee 2 | . . . . . . . 2 . . Projectile 8 | . . . 1 6 . . . 1 . AOE 163 | . . . . 36 20 . 64 43 . Terrain Rammed . | . . . . . . . . . . Walls Destroyed . | . . . . . . . . . . Machines Disabled . | . . . . . . . . . . Actions | -11 -10 -10 -10 -8 -7 -7 -7 -7 -7 --------- Run | Yrd Mat Min Sub Mat Fac Was Fac Low Low Total 6687 | 47 661 577 871 1461 651 189 1503 725 2 Wait 579 | . 71 13 6 139 33 3 151 163 . Move 5250 | 36 482 529 811 1046 527 161 1182 476 . Hop . | . . . . . . . . . . Pick Up 110 | 3 16 7 6 19 5 3 21 30 . Fast Attach 54 | 6 7 . 1 14 8 3 9 6 . Attach 45 | . 1 3 1 11 11 1 10 7 . Detach 4 | . . . . . . . 3 1 . Swap 84 | 2 6 1 5 26 8 2 29 5 . Drop 94 | . 9 4 10 35 3 3 14 16 . Fire 453 | . 68 20 31 169 56 13 73 21 2 Melee 3 | . . . . . . . 3 . . Ram . | . . . . . . . . . . Kick . | . . . . . . . . . . Crush 3 | . 1 . . 2 . . . . . Escape Stasis 8 | . . . . . . . 8 . . Rewire . | . . . . . . . . . . Trap . | . . . . . . . . . . Miscellaneous . | . . . . . . . . . . Route ------- -11/Scrapyard -10/Materials (discovered 3 exits: [*Mat x2] / *Min) -10/Mines (discovered 3 exits: [*Mat x2] / *Sub) -10/Subcaves -8/Materials (discovered 2 exits: *Fac x2) -7/Factory -7/Waste -7/Factory (discovered 2 exits: *Low x2) -7/Lower Caves -7/Lower Caves History --------- Turn | Location | Event 8 | -11/Scrapyard | Discovered new exit (range 16) 64 | -11/Scrapyard | Entered Materials 304 | -10/Materials | Build established: Mutant 392 | -10/Materials | Discovered new exit (range 16) 547 | -10/Materials | Discovered new exit (range 11) 745 | -10/Materials | Build established: Scavenger-Mutant 776 | -10/Materials | Discovered new exit (range 15) 1151 | -10/Materials | Entered Mines 1151 | -10/Mines | Discovered new exit (range 8) 1156 | -10/Mines | Learned Materials stockpile data 1449 | -10/Mines | Discovered new exit (range 15) 1459 | -10/Mines | Received a Rocket Launcher from a helpful Derelict 1562 | -10/Mines | Met a Derelict shopkeep closing up shop 1608 | -10/Mines | Build established: Mutant 1736 | -10/Mines | Learned location of Zion (-6) 2136 | -10/Mines | Discovered new exit (range 8) 2150 | -10/Mines | Entered Subcaves 2150 | -10/Subcaves | Accompanied by 2 allies 2155 | -10/Subcaves | Led the pair of lost Derelicts to an unsafe place 2646 | -10/Subcaves | Shifting Twisted Machinery released Sub. Shrapnel Launcher 2677 | -10/Subcaves | Shifting Twisted Machinery released Hvy. Riot Gun 2847 | -10/Subcaves | Visited Clippyterm 2855 | -10/Subcaves | Learned Research security intel 2959 | -10/Subcaves | Shifting Twisted Machinery released Mak. Axe 3403 | -10/Subcaves | Learned location of Storage (-9) 3410 | -10/Subcaves | A Subdweller sparked back to life 3410 | -10/Subcaves | A Subdweller sparked back to life 3424 | -10/Subcaves | Core integrity fell below 50% 3463 | -10/Subcaves | Found Prototype Leg 3506 | -10/Subcaves | A swath of the cavern ceiling suddenly collapsed 3715 | -10/Subcaves | Build established: Scavenger-Mutant 3750 | -10/Subcaves | Discovered new exit (range 9) 3756 | -10/Subcaves | Ambushed by Subdwellers from Twisted Machinery 3787 | -10/Subcaves | Ambushed by Subdweller buried in earth 4076 | -10/Subcaves | Build established: Mutant 4128 | -10/Subcaves | Entered Materials 4128 | -8/Materials | Evolved 4 slots: Propulsion x2, Utility x2 4481 | -8/Materials | Garrison activated, responded to threat 5001 | -8/Materials | Build established: Scavenger-Mutant 5066 | -8/Materials | Discovered new exit (range 3) 5327 | -8/Materials | Discovered new exit (range 3) 5870 | -8/Materials | Garrison activated, responded to threat 6518 | -8/Materials | Entered Factory 6518 | -7/Factory | Evolved 2 slots: Utility x2 6837 | -7/Factory | Build established: Hacker-Mutant 7055 | -7/Factory | Garrison activated, responded to threat 7132 | -7/Factory | Lost 4 parts (1p2n1u) 7419 | -7/Factory | Destroyed 7 combat bots 7422 | -7/Factory | Lost 10 parts (1p4n1u4w) 7628 | -7/Factory | Sucked down chute 7628 | -7/Factory | Entered Waste 7629 | -7/Waste | Met a frightened Derelict 7631 | -7/Waste | Identified Arachnoskeleton 7632 | -7/Waste | Attached Arachnoskeleton, gained temporary slots: Propulsion x3 7652 | -7/Waste | Spotted C-40 Crusher 7665 | -7/Waste | Destroyed C-40 Crusher 7679 | -7/Waste | Found Damper Plating 7716 | -7/Waste | Spotted C-40 Crusher 7737 | -7/Waste | Build established: Scavenger-Mutant 7738 | -7/Waste | Spotted C-40 Crusher 7746 | -7/Waste | Spotted C-40 Crusher 7786 | -7/Waste | Spotted C-40 Crusher 7795 | -7/Waste | Spotted C-40 Crusher 7798 | -7/Waste | Crushed by Compactor (1 part destroyed, 1 dropped) 7798 | -7/Waste | Crushed by Compactor (1 part destroyed, 1 dropped) 7814 | -7/Waste | Crushed by Compactor (1 part destroyed, 1 dropped) 7845 | -7/Waste | Lost 3 parts (1n1u1w) 7902 | -7/Waste | Discovered new exit (range 10) 7919 | -7/Waste | Entered Factory 8111 | -7/Factory | Build established: Hacker-Mutant 8263 | -7/Factory | Identified exit to Lower Caves 8646 | -7/Factory | Core integrity fell below 50% 9811 | -7/Factory | Core integrity fell below 20% 10680 | -7/Factory | Central database locked down 10756 | -7/Factory | Entered Lower Caves 10951 | -7/Lower Caves | Found DCF Scrap (12 items) 11090 | -7/Lower Caves | Acquired the password to a Derelict Tinkerer's latest research 11372 | -7/Lower Caves | Attracted the attention of an 0b10 checkpoint 11525 | -7/Lower Caves | Build established: Mutant 11718 | -7/Lower Caves | Caught by Unaware searching for contraband prototypes 11985 | -7/Lower Caves | Build established: Derelict-Mutant 12001 | -7/Lower Caves | Discovered new exit (range 6) 12010 | -7/Lower Caves | Identified exit to Lower Caves 12041 | -7/Lower Caves | Entered another Lower Caves area 12047 | -7/Lower Caves | Destroyed by G-47 Trooper with Particle Gun Last Messages --------------- repair. 11813_ Acquired 53 matter. 11833_ Acquired 41 matter. 11945_ Acquired 36 matter. 12001_ EXIT=FOUND 12010_ EXIT=IDENTIFIED: LOWER CAVES 12018_ Dropped Imp. Medium Armor Plating. 12019_ Dropped Hrd. Light Armor Plating. 12019_ Dropped Imp. Sensor Array. 12020_ Dropped Imp. Cooling System. 12028_ Acquired Imp. Sensor Array. 12031_ Acquired Imp. Medium Armor Plating. 12034_ Acquired Hrd. Light Armor Plating. 12038_ Acquired Imp. Cooling System. LOCATION=LOWER CAVES GOAL=ESCAPE 12041_ G-47 Trooper destroyed. 12044_ B-48 Gladiator suffers critical hit (Destroy). 12045_ Particle Gun fries itself beyond repair. Map ----- +----------------------------------------------------+ | | | | | | | ?????????????????????????????????????????????????? | | ?????????????????????????????????????????????????? | | ?????????????????????????????????????????????????? | | ?????????????????????????????????????????????????? | | ?????????????????????????????????????????????????? | | ?????????????????????????????????????????????????? | | ?????????????????????????????????????????????????? | | ?????????????????????????????????????????????????? | | ?????????????????????????????????????????????????? | | ?????????????????????????????????????????????????? | | ?????????????????????????????????????????????????? | | ?????????????????????????????????????????????????? | | ?????????????????????????????????????????????????? | | ?????????????????????????????????????????????????? | | ?????????????????????????????????????????????????? | | ????????????????????##???????????????????????????? | | ????????????????????? ??????????????????????????? | | ????????????????????? ??????????????????????????? | | ?????????????????????? ?????????????????????????? | | ??????????????????????? ###??????????????????????? | | ???????????????????????# ###????????????????????? | | ???????????????????????# #????????????????????? | | ???????????????????????# @ #????????????????????? | | ??????????????????????#%=b ##????????????????????? | | ?????????????????????# != ##?????????????????????? | | ?????????????????????## #??????????????????????? | | ??????????????????????# ??????????????????????? | | ?????????????????????? g ??????????????????????? | | ?????????????????????# ??????????????????????? | | ?????????????????????# g###??????????????????????? | | ?????????????????????# ?????????????????????????? | | ?????????????????????# ?????????????????????????? | | ????????????????????? ?????????????????????????? | | ????????????????????? ?????????????????????????? | | ???????????????????? ??????????????????????????? | | ???????????????????? ??????????????????????????? | | ????????????????????? ??????????????????????????? | | ?????????????????????????????????????????????????? | | ?????????????????????????????????????????????????? | | ?????????????????????????????????????????????????? | | ?????????????????????????????????????????????????? | | ?????????????????????????????????????????????????? | | ?????????????????????????????????????????????????? | | ?????????????????????????????????????????????????? | | ?????????????????????????????????????????????????? | | ?????????????????????????????????????????????????? | | ?????????????????????????????????????????????????? | +----------------------------------------------------+ Best States ------------- Heat Dissipation 61 Coolant Potential 65 Energy Generation 21 Energy Capacity 325 Matter Stores 300 Matter Capacity 300 Sight Range 20 Robot Scan Range 15 Terrain Scan Density 10 ECM Strength 2 Jamming Range 12 Armor Coverage 3200 Resistance: KI 10 Resistance: EM 90 Evasion (%) 55 Targeting Accuracy 8 Recoil Reduction 4 Offensive Hacking 20 Defensive Hacking 10 Authchip Count 1 Item Schematics ----------------- Adv. ECM Suite | -7/Factory | Hacked Hvy. Treads | -7/Factory | Scanalyzed Robot Schematics ------------------ None Fabricated ------------ Nothing Repaired ---------- Nothing Studied --------- Lgt. Treads | -8/Materials | Hacked Lgt. Assault Rifle | -8/Materials | Hacked Rocket Launcher | -8/Materials | Hacked Imp. Deuterium Engine | -7/Factory | Hacked Hvy. Treads | -7/Factory | Hacked Alien Tech Used ----------------- None Achievements -------------- None Challenges ------------ None Game ------ Seed ReflectiveScrapBasin Manual? 0 Play Time 01:18:39 Cumulative 249.2 hours Start 2026.08.15 @ 22:16:33 End 2026.08.15 @ 23:43:39 Sessions 1 Manual Loads 0 Difficulty Rogue Special Mode None Game No. 245 Rogue 191 Adventurer 54 Explorer 0 Win Type - Total 11 Types 7/0/1/1/0/0/0/1/0/1 Lore% 76 Gallery% 64 Achievement% 59 Wizard Run 0 Options --------- Layout 1 ASCII 0 Keyboard 0 Movement Mouse Keybinds 1 Fullscreen 2 Font 32/Tamsyn Map View 50x35 Zoom Use 0% Tactical HUD 1 Map Filters NONE Filters NONE Steam 1 RUN: fd66c2a4-e95f-49bc-8b2e-14063dc17860